bitfinex/quotes_ETHUSD_20251019
["timestamp","ask_amount","ask_price","bid_price","bid_amount"]
[1760890663033,2.61276285,3978.1,3978.0,0.002]
[1760890663235,4.34076285,3978.1,3978.0,0.002]
[1760890664589,4.24176285,3978.1,3978.0,0.002]
[1760890665826,4.34076285,3978.1,3978.0,0.002]
[1760890666425,4.24176285,3978.1,3978.0,0.002]
[1760890666626,4.34076285,3978.1,3978.0,0.002]
[1760890668311,1.728,3978.1,3978.0,0.002]
[1760890668494,4.24176285,3978.1,3978.0,0.002]
[1760890670138,1.728,3978.1,3978.0,0.002]
[1760890670302,1.728,3978.1,3978.0,1.1099]
[1760890670502,1.728,3978.1,3978.0,0.6356]
[1760890670727,4.24176285,3978.1,3978.0,0.002]
[1760890672614,4.34076285,3978.1,3978.0,0.002]
[1760890673837,26.46225285,3978.1,3978.0,0.002]
[1760890674238,15.02213885,3978.1,3978.0,0.002]
[1760890674941,27.96729585,3978.1,3978.0,0.002]
[1760890675131,27.96729585,3978.1,3977.6,0.002]
[1760890675132,27.68510063,3977.7,3977.6,0.002]
[1760890675641,27.78420063,3977.7,3977.6,0.002]
[1760890675840,34.34111563,3977.7,3977.6,0.002]
[1760890676021,30.17981963,3977.7,3977.6,0.002]
[1760890676729,4.34111563,3977.7,3977.6,0.002]
[1760890676935,34.34111563,3977.7,3977.6,0.002]
[1760890677439,32.51426847,3977.3,3977.2,1e-08]
[1760890677639,24.67174647,3977.3,3977.2,1e-08]
[1760890677833,24.77084647,3977.3,3977.2,1e-08]
[1760890678034,24.18033447,3977.3,3977.2,1e-08]
[1760890678536,23.75258847,3977.3,3977.2,1e-08]
[1760890679010,23.06637347,3977.3,3977.2,1e-08]
[1760890680017,25.52628347,3977.3,3977.2,1e-08]
[1760890680317,20.24849347,3977.3,3977.2,1e-08]
[1760890680934,11.10583847,3977.3,3977.2,1e-08]
[1760890681152,9.87558947,3977.3,3977.2,1e-08]
[1760890681450,9.77648947,3977.3,3977.2,1e-08]
[1760890681748,6.91518547,3977.3,3977.2,1e-08]
[1760890682358,6.27558847,3977.3,3977.2,1e-08]
[1760890683850,4.24226847,3977.3,3977.2,0.47430001]
[1760890684593,2.51426847,3977.3,3977.2,0.47430001]
[1760890687087,2.51426847,3977.3,3977.2,1e-08]
[1760890688563,20.97929247,3977.3,3977.2,1e-08]
[1760890689064,20.87989247,3977.3,3977.2,1e-08]
[1760890689258,20.97929247,3977.3,3977.2,1e-08]
[1760890689459,13.21390847,3977.3,3977.2,1e-08]
[1760890689660,12.61403747,3977.3,3977.2,1e-08]
[1760890690372,10.52330247,3977.3,3977.2,1e-08]
[1760890690572,6.52330247,3977.3,3977.2,1e-08]
[1760890690769,5.54846847,3977.3,3977.2,1e-08]
[1760890690962,2.51426847,3977.3,3977.2,1e-08]
[1760890695270,2.51426847,3977.3,3977.2,0.44670001]
[1760890695469,0.0994,3978.1,3977.2,0.44670001]
[1760890695699,4.24226847,3977.3,3977.2,1e-08]
[1760890696903,18.60360047,3977.3,3977.2,1e-08]
[1760890697104,15.57627947,3977.3,3977.2,1e-08]
[1760890697604,14.29678547,3977.3,3977.2,1e-08]
[1760890697971,17.68450747,3977.3,3977.2,1e-08]
[1760890698205,17.58490747,3977.3,3977.2,1e-08]
[1760890698819,14.27697947,3977.3,3977.2,1e-08]
[1760890699030,4.24226847,3977.3,3977.2,1e-08]
[1760890699201,1.728,3977.3,3977.2,0.44670001]
[1760890699395,1.729,3977.3,3977.2,1.08030001]
[1760890701590,0.001,3977.3,3977.2,1.23249001]
[1760890705523,0.001,3977.3,3977.2,3.7468217]
[1760890705905,0.001,3977.3,3977.2,1.23249001]
[1760890706096,0.001,3977.3,3977.2,1.08030001]
[1760890707311,0.001,3977.3,3977.2,1.8359894]
[1760890709332,0.001,3977.3,3977.2,0.63360001]
[1760890709537,2.51526847,3977.3,3977.2,0.75920001]
[1760890709745,2.51526847,3977.3,3977.2,0.63360001]
[1760890709978,4.34236847,3977.3,3977.2,1e-08]
[1760890711831,4.24326847,3977.3,3977.2,1e-08]
[1760890712601,4.34236847,3977.3,3977.2,1e-08]
[1760890712798,4.24326847,3977.3,3977.2,1e-08]
[1760890713032,4.34236847,3977.3,3977.2,1e-08]
[1760890713735,21.65526447,3977.3,3977.2,1e-08]
[1760890713939,14.98588847,3977.3,3977.2,1e-08]
[1760890714246,12.98449747,3977.3,3977.2,1e-08]
[1760890715018,9.43532747,3977.3,3977.2,1e-08]
[1760890715512,4.24326847,3977.3,3977.2,1e-08]
[1760890715719,6.75715347,3977.3,3977.2,1e-08]
[1760890716235,9.54462447,3977.3,3977.2,1e-08]
[1760890717240,12.63070447,3977.3,3977.2,1e-08]
[1760890717436,10.04164547,3977.3,3977.2,1e-08]
[1760890717658,9.40664547,3977.3,3977.2,1e-08]
[1760890718254,13.81190847,3977.3,3977.2,1e-08]
[1760890718560,10.66634747,3977.3,3977.2,1e-08]
[1760890718767,6.74474947,3977.3,3977.2,1e-08]
[1760890719255,4.24326847,3977.3,3977.2,1e-08]
[1760890722779,0.001,3977.3,3977.2,1e-08]
[1760890722989,0.001,3977.3,3977.2,4.29724332]
[1760890723133,0.001,3977.3,3977.2,4.9757101]
[1760890723334,0.001,3977.3,3977.2,4.27210001]
[1760890723536,0.001,3977.3,3977.2,5.02788078]
[1760890724072,2.51526847,3977.3,3977.2,4.56138078]
[1760890724240,4.24326847,3977.3,3977.2,4.56138078]
[1760890724441,4.24326847,3977.3,3977.2,1.38938078]
[1760890728856,4.24326847,3977.3,3977.2,1e-08]
[1760890729188,11.76313947,3977.3,3977.2,1e-08]
[1760890729489,9.60257447,3977.3,3977.2,1e-08]
[1760890730288,8.50995547,3977.3,3977.2,1e-08]
[1760890732060,7.02227147,3977.3,3977.2,1e-08]
[1760890735968,7.12127147,3977.3,3977.2,1e-08]
[1760890737690,7.02227147,3977.3,3977.2,1e-08]
[1760890737877,34.24326847,3977.3,3977.2,1e-08]
[1760890738084,25.33830147,3977.3,3977.2,1e-08]
[1760890738281,24.05632747,3977.3,3977.2,1e-08]
[1760890738593,12.97770647,3977.3,3977.2,1e-08]
[1760890738793,4.24326847,3977.3,3977.2,1e-08]
[1760890738962,12.09124847,3977.3,3977.2,1e-08]
[1760890739463,10.47414847,3977.3,3977.2,1e-08]
[1760890739663,9.50814847,3977.3,3977.2,1e-08]
[1760890739872,9.50408647,3977.3,3977.2,1e-08]
[1760890740308,7.37371947,3977.3,3977.2,1e-08]
[1760890740509,7.66484647,3977.3,3977.2,1e-08]
[1760890742178,4.24326847,3977.3,3977.2,1e-08]
[1760890742392,16.15695147,3977.3,3977.2,1e-08]
[1760890742712,7.15559547,3977.3,3977.2,1e-08]
[1760890743413,8.09843947,3977.3,3977.2,1e-08]
[1760890743617,7.84138047,3977.3,3977.2,1e-08]
[1760890744319,7.06930347,3977.3,3977.2,1e-08]
[1760890756759,1.729,3977.3,3977.2,1e-08]
[1760890756967,1.729,3977.3,3977.2,0.67510001]
[1760890758933,0.1266,3977.3,3977.2,1.30870001]
[1760890759154,0.1266,3977.3,3977.2,1.43977001]
[1760890760164,0.0766,3977.3,3977.2,1.43977001]
[1760890762166,0.0766,3977.3,3977.2,3.9541017]
[1760890762679,0.001,3977.7,3977.2,1e-08]
[1760890762680,2.51415781,3977.5,3977.2,1e-08]
[1760890762889,1.728,3977.4,3977.2,1e-08]
[1760890763583,2.51415548,3977.5,3977.2,1e-08]
[1760890763749,0.1,3977.7,3977.2,1e-08]
[1760890763750,2.51421119,3977.4,3977.2,1e-08]
[1760890763950,2.51426847,3977.3,3977.2,1e-08]
[1760890764547,2.51421762,3977.4,3977.2,1e-08]
[1760890765179,2.51426847,3977.3,3977.2,1e-08]
[1760890765350,27.45683547,3977.3,3977.2,1e-08]
[1760890765682,22.65339547,3977.3,3977.2,1e-08]
[1760890765859,20.41696847,3977.3,3977.2,1e-08]
[1760890766055,2.023571,3977.4,3977.2,1e-08]
[1760890766272,2.51425818,3977.4,3977.2,1e-08]
[1760890766572,4.24226847,3977.3,3977.2,1e-08]
[1760890771492,1.728,3977.3,3977.2,1e-08]
[1760890771799,13.51318647,3977.3,3977.2,1e-08]
[1760890772878,12.76668547,3977.3,3977.2,1e-08]
[1760890773283,12.66768547,3977.3,3977.2,1e-08]
[1760890773604,7.36532347,3977.3,3977.2,1e-08]
[1760890773974,14.77731247,3977.3,3977.2,1e-08]
[1760890774200,9.70643947,3977.3,3977.2,1e-08]
[1760890774686,7.97843947,3977.3,3977.2,1e-08]
[1760890774889,17.35388747,3977.3,3977.2,1e-08]
[1760890775699,19.08188747,3977.3,3977.2,1e-08]
[1760890775899,4.24226847,3977.3,3977.2,1e-08]
[1760890776203,14.05424047,3977.3,3977.2,1e-08]
[1760890776875,13.67097747,3977.3,3977.2,1e-08]
[1760890777074,12.87897747,3977.3,3977.2,1e-08]
[1760890777804,11.87733447,3977.3,3977.2,1e-08]
[1760890777999,4.24226847,3977.3,3977.2,1e-08]
[1760890778199,11.85080647,3977.3,3977.2,1e-08]
[1760890778375,6.78234847,3977.3,3977.2,1e-08]
[1760890778575,6.87679047,3977.3,3977.2,1e-08]
[1760890778906,4.24226847,3977.3,3977.2,1e-08]
[1760890779121,9.31735347,3977.3,3977.2,1e-08]
[1760890779805,9.41635347,3977.3,3977.2,1e-08]
[1760890780207,12.13335347,3977.3,3977.2,1e-08]
[1760890780417,11.85385347,3977.3,3977.2,1e-08]
[1760890781316,30.62673947,3977.3,3977.2,1e-08]
[1760890781685,29.81273947,3977.3,3977.2,1e-08]
[1760890781909,29.91173947,3977.3,3977.2,1e-08]
[1760890782138,28.89800647,3977.3,3977.2,1e-08]
[1760890782284,28.89551047,3977.3,3977.2,1e-08]
[1760890782484,23.07195947,3977.3,3977.2,1e-08]
[1760890782781,21.87214647,3977.3,3977.2,1e-08]
[1760890783199,19.60560147,3977.3,3977.2,1e-08]
[1760890783414,15.06685047,3977.3,3977.2,1e-08]
[1760890784385,19.95056647,3977.3,3977.2,1e-08]
[1760890784585,19.95156647,3977.3,3977.2,1e-08]
[1760890785215,17.95156647,3977.3,3977.2,1e-08]
[1760890785394,4.34226847,3977.3,3977.2,1e-08]
[1760890785599,18.95156647,3977.3,3977.2,1e-08]
[1760890785826,16.95156647,3977.3,3977.2,1e-08]
[1760890786018,6.32977047,3977.3,3977.2,1e-08]
[1760890786424,9.06259147,3977.3,3977.2,1e-08]
[1760890786615,6.93188547,3977.3,3977.2,1e-08]
[1760890787420,6.53866447,3977.3,3977.2,1e-08]
[1760890791025,4.24326847,3977.3,3977.2,0.44970001]
[1760890791227,10.02537347,3977.3,3977.2,0.44970001]
[1760890791442,7.57151447,3977.3,3977.2,0.44970001]
[1760890791649,7.57151447,3977.3,3977.2,1e-08]
[1760890791821,7.67051447,3977.3,3977.2,1e-08]
[1760890792001,30.50320847,3977.3,3977.2,1e-08]
[1760890793133,30.36876047,3977.3,3977.2,1e-08]
[1760890793957,25.58064947,3977.3,3977.2,1e-08]
[1760890794121,8.94378147,3977.3,3977.2,1e-08]
[1760890795160,4.24326847,3977.3,3977.2,1e-08]
[1760890795455,14.97162747,3977.3,3977.2,1e-08]
[1760890795655,13.43471847,3977.3,3977.2,1e-08]
[1760890796251,4.24326847,3977.3,3977.2,1e-08]
[1760890796450,15.34140847,3977.3,3977.2,1e-08]
[1760890797352,16.77764747,3977.3,3977.2,1e-08]
[1760890798257,29.81611247,3977.3,3977.2,1e-08]
[1760890800063,22.37879047,3977.3,3977.2,1e-08]
[1760890800265,20.87534047,3977.3,3977.2,1e-08]
[1760890800468,11.32574747,3977.3,3977.2,1e-08]
[1760890800639,11.32574747,3977.3,3977.2,0.44970001]
[1760890800640,8.19857347,3977.3,3977.2,0.44970001]
[1760890800839,7.72325447,3977.3,3977.2,0.44970001]
[1760890801569,4.24326847,3977.3,3977.2,0.44970001]
[1760890801871,10.06595847,3977.3,3977.2,0.44970001]
[1760890802049,7.72212547,3977.3,3977.2,0.44970001]
[1760890802559,9.14551847,3977.3,3977.2,0.44970001]
[1760890803338,9.95070147,3977.3,3977.2,1e-08]
[1760890804845,9.95070147,3977.3,3977.2,0.44970001]
[1760890806133,9.95070147,3977.3,3977.2,1e-08]
[1760890806367,9.95070147,3977.3,3977.2,0.44540001]
[1760890806567,9.95070147,3977.3,3977.2,1e-08]
[1760890806960,9.95070147,3977.3,3977.2,0.44540001]
[1760890808065,9.95070147,3977.3,3977.2,1e-08]
[1760890810458,34.24326847,3977.3,3977.2,1e-08]
[1760890810972,31.67558047,3977.3,3977.2,1e-08]
[1760890811275,29.51390447,3977.3,3977.2,1e-08]
[1760890811452,4.34226847,3977.3,3977.2,1e-08]
[1760890811654,27.54408647,3977.3,3977.2,1e-08]
[1760890811843,26.79597147,3977.3,3977.2,1e-08]
[1760890812174,26.69697147,3977.3,3977.2,1e-08]
[1760890812375,26.79597147,3977.3,3977.2,1e-08]
[1760890812555,4.34226847,3977.3,3977.2,1e-08]
[1760890812756,34.36793169,3977.2,3977.1,0.002]
[1760890813471,33.45301469,3977.2,3977.1,0.002]
[1760890813676,22.39239269,3977.2,3977.1,0.002]
[1760890814073,13.85117069,3977.2,3977.1,0.002]
[1760890814265,13.75217069,3977.2,3977.1,0.002]
[1760890814666,21.27850469,3977.2,3977.1,0.002]
[1760890815779,22.72103469,3977.2,3977.1,0.002]
[1760890815956,19.10546369,3977.2,3977.1,0.002]
[1760890816880,19.30093469,3977.2,3977.1,0.002]
[1760890817785,25.12780869,3977.2,3977.1,0.002]
[1760890818159,25.22680869,3977.2,3977.1,0.002]
[1760890818859,28.54910469,3977.2,3977.1,0.002]
[1760890819679,32.68058559,3976.8,3976.7,0.002]
[1760890819977,31.35488359,3976.8,3976.7,0.002]
[1760890820278,29.28382159,3976.8,3976.7,0.002]
[1760890820481,27.53520859,3976.8,3976.7,0.002]
[1760890820664,22.76482859,3976.8,3976.7,0.002]
[1760890820854,4.46778459,3976.8,3976.7,0.002]
[1760890821061,27.32681459,3976.8,3976.7,0.002]
[1760890821377,25.86872659,3976.8,3976.7,0.002]
[1760890821972,30.24786959,3976.8,3976.7,0.002]
[1760890822171,28.24786959,3976.8,3976.7,0.002]
[1760890822873,28.45466387,3976.8,3976.7,0.002]
[1760890823073,32.41535059,3976.8,3976.7,0.002]
[1760890823249,29.97524659,3976.8,3976.7,0.002]
[1760890823583,15.88094759,3976.8,3976.7,0.002]
[1760890823884,15.75534759,3976.8,3976.7,0.002]
[1760890824068,27.14718959,3976.8,3976.7,0.002]
[1760890824270,23.77516559,3976.8,3976.7,0.002]
[1760890825076,25.91390259,3976.8,3976.7,0.002]
[1760890825586,23.95017059,3976.8,3976.7,0.002]
[1760890826090,4.24258459,3976.8,3976.7,0.002]
[1760890826289,29.72275059,3976.8,3976.7,0.002]
[1760890827154,34.34158459,3976.8,3976.7,0.002]
[1760890829659,31.95559729,3976.5,3976.4,0.002]
[1760890830460,34.24277429,3976.5,3976.4,0.002]
[1760890830871,34.34177429,3976.5,3976.4,0.002]
[1760890831071,21.04015629,3976.5,3976.4,0.002]
[1760890831372,24.50127429,3976.5,3976.4,0.002]
[1760890832480,27.34232829,3976.5,3976.4,0.002]
[1760890833481,4.34177429,3976.5,3976.4,0.002]
[1760890833791,29.51052429,3976.5,3976.4,0.002]
[1760890834017,32.51502728,3976.1,3976.0,0.002]
[1760890834201,34.24334359,3975.6,3975.5,0.002]
[1760890834495,4.24334359,3975.6,3975.5,0.002]
[1760890834691,32.05171859,3975.6,3975.5,0.002]
[1760890834869,29.74158659,3975.6,3975.5,0.002]
[1760890835658,30.92539059,3975.6,3975.5,0.002]
[1760890835888,31.04954536,3975.6,3975.5,0.002]
[1760890836691,34.36749836,3975.6,3975.5,0.002]
[1760890837663,4.36749836,3975.6,3975.5,0.002]
[1760890837965,34.36749836,3975.6,3975.5,0.002]
[1760890838393,34.24340686,3975.5,3975.4,1e-08]
[1760890838593,30.79351186,3975.5,3975.4,1e-08]
[1760890838809,34.24340686,3975.5,3975.4,1e-08]
[1760890838970,23.74502286,3975.5,3975.4,1e-08]
[1760890839680,32.99981886,3975.5,3975.4,1e-08]
[1760890839864,30.98097886,3975.5,3975.4,1e-08]
[1760890840267,2.65,3972.9,3971.6,0.13152196]
[1760890840575,8.75994974,3971.9,3971.3,0.185]
[1760890840775,0.6386,3973.0,3971.8,0.4584]
[1760890840975,6.80165274,3971.9,3971.8,0.4584]
[1760890841488,6.61665274,3971.9,3971.8,0.003]
[1760890841806,1.728,3971.9,3971.8,0.4584]
[1760890841970,4.24568674,3971.9,3971.8,0.4584]
[1760890842162,4.24568674,3971.9,3971.8,0.003]
[1760890842362,1.02447348,3972.3,3971.8,0.4584]
[1760890842599,14.46261637,3972.3,3972.2,0.185]
[1760890842897,12.73587674,3971.9,3971.8,0.003]
[1760890843102,9.79368374,3971.9,3971.8,0.4584]
[1760890843601,4.24568674,3971.9,3971.8,0.4584]
[1760890844262,4.96739667,3971.9,3971.8,0.003]
[1760890844469,4.96739667,3971.9,3971.8,0.4584]
[1760890844780,4.24568674,3971.9,3971.8,0.4584]
[1760890847004,1.728,3971.9,3971.8,0.4584]
[1760890847302,4.24568674,3971.9,3971.8,0.4584]
[1760890847897,4.24568674,3971.9,3971.8,0.003]
[1760890848404,9.32543774,3971.9,3971.8,0.003]
[1760890849311,10.29920767,3971.9,3971.8,0.003]
[1760890849684,9.86480767,3971.9,3971.8,0.003]
[1760890849884,7.54089667,3971.9,3971.8,0.003]
[1760890850406,13.89520874,3971.9,3971.8,0.003]
[1760890850572,15.24691867,3971.9,3971.8,0.003]
[1760890850773,4.24613053,3971.2,3971.1,0.185]
[1760890850972,4.24613053,3971.2,3970.8,0.4554]
[1760890850973,4.24632078,3970.9,3970.8,0.4554]
[1760890851607,1.728,3970.9,3970.8,0.4554]
[1760890852208,1.728,3970.8,3970.0,1.0]
[1760890852408,0.1817,3971.2,3970.0,1.0]
[1760890852612,2.51857448,3970.5,3970.4,0.6404]
[1760890853310,3.140529,3971.1,3970.4,0.6404]
[1760890853502,1.728,3970.9,3970.4,0.6404]
[1760890853682,4.24652683,3970.6,3970.5,0.4554]
[1760890854225,1.728,3970.6,3970.0,1.4554]
[1760890854377,0.1256,3970.5,3970.1,3.6914]
[1760890854585,1.728,3970.6,3970.2,0.4554]
[1760890854783,4.24651392,3970.6,3970.2,0.4554]
[1760890855309,4.24651392,3970.6,3970.1,3.236]
[1760890855310,4.24651392,3970.6,3970.3,0.4554]
[1760890855698,4.24651392,3970.6,3970.4,0.4554]
[1760890855699,1.728,3970.6,3970.4,0.4554]
[1760890856127,1.728,3970.6,3970.5,0.4554]
[1760890857033,2.398359,3971.5,3970.5,0.4554]
[1760890857352,1.728,3971.1,3970.5,0.4554]
[1760890857503,2.51831213,3971.0,3970.5,0.4554]
[1760890857809,2.51831213,3971.0,3970.2,0.6336]
[1760890858000,2.51831213,3971.0,3970.6,0.4554]
[1760890858196,2.51820062,3971.1,3970.7,0.4554]
[1760890858428,2.356,3971.7,3970.7,0.4554]
[1760890858607,1.728,3971.0,3970.7,0.4554]
[1760890858807,1.728,3971.0,3970.2,3.15236454]
[1760890859010,1.728,3971.0,3970.8,0.4554]
[1760890859209,1.728,3971.0,3970.9,3.234]
[1760890859809,2.51825736,3971.0,3970.9,3.234]
[1760890860012,1.728,3971.0,3970.9,3.234]
[1760890860808,1.728,3971.2,3970.9,3.234]
[1760890861045,2.51817322,3971.2,3970.9,3.234]
[1760890861214,4.24609708,3971.3,3970.9,3.6894]
[1760890861414,2.51806713,3971.3,3970.9,0.96596157]
[1760890861618,2.51813797,3971.2,3971.0,0.4554]
[1760890861816,2.169914,3971.5,3970.9,0.51056157]
[1760890862031,1.728,3971.3,3971.1,0.185]
[1760890862337,4.24598677,3971.5,3971.2,0.4554]
[1760890862833,6.7945153,3971.6,3971.2,0.4554]
[1760890863137,2.51797138,3971.5,3971.2,0.4554]
[1760890863321,4.210718,3971.6,3971.3,3.231]
[1760890863521,1.728,3971.5,3971.3,3.231]
[1760890864044,1.728,3971.3,3970.7,0.6336]
[1760890864224,1.728,3971.3,3970.8,3.231]
[1760890864423,1.728,3971.3,3970.7,0.6336]
[1760890864628,1.728,3971.3,3970.9,3.231]
[1760890864834,2.51794211,3971.5,3970.9,3.6729]
[1760890865044,2.51788657,3971.6,3970.9,3.6729]
[1760890865247,4.24597526,3971.5,3970.9,3.6729]
[1760890865532,1.728,3971.4,3970.9,0.4419]
[1760890865731,1.728,3971.4,3970.7,0.6336]
[1760890865732,1.728,3971.4,3971.0,3.6719]
[1760890865924,1.728,3971.4,3971.1,0.6269]
[1760890866113,1.728,3971.4,3971.2,3.229]
[1760890866315,1.728,3971.4,3971.3,3.229]
[1760890867532,1.728,3971.5,3971.3,3.229]
[1760890868621,3.96314901,3971.4,3971.3,3.229]
[1760890870038,5.69114901,3971.4,3971.3,3.229]
[1760890870244,5.69114901,3971.4,3970.9,0.002]
[1760890870444,5.69114901,3971.4,3971.3,0.12]
[1760890871107,1.728,3971.4,3971.3,0.12]
[1760890871313,5.69114901,3971.4,3971.3,0.5583]
[1760890873216,5.69114901,3971.4,3971.3,0.12]
[1760890874924,5.69114901,3971.4,3971.3,0.5583]
[1760890875222,0.001,3971.5,3971.3,0.5583]
[1760890875425,0.001,3971.5,3971.3,2.6380488]
[1760890875626,0.001,3971.5,3971.4,0.4383]
[1760890875820,0.001,3971.5,3971.4,2.95630372]
[1760890876020,0.001,3971.5,3971.4,3.2824386]
[1760890876223,0.001,3971.5,3971.4,6.5064386]
[1760890877917,0.001,3971.5,3971.4,7.1400386]
[1760890884636,0.001,3971.5,3971.4,7.1360386]
[1760890886663,0.001,3971.5,3971.4,7.11082442]
[1760890888864,0.001,3971.5,3971.4,7.23642442]
[1760890892487,0.001,3971.5,3971.4,3.89082442]
[1760890892690,0.001,3971.5,3971.4,11.19557343]
[1760890896293,0.001,3971.5,3971.4,12.92357343]
[1760890899281,0.001,3971.5,3971.4,16.76112244]
[1760890899469,1e-08,3972.3,3972.2,3.1510966]
[1760890899669,1e-08,3972.3,3972.2,6.80580626]
[1760890900067,1e-08,3972.3,3972.2,7.26520626]
[1760890900577,1e-08,3972.3,3972.2,12.92835527]
[1760890902171,0.45760001,3972.3,3971.9,2.51768636]
[1760890902374,0.4576,3972.2,3972.0,3.213]
[1760890902578,1e-08,3972.3,3972.1,3.213]
[1760890902877,1e-08,3972.3,3972.2,0.6336]
[1760890903275,1e-08,3972.3,3972.2,3.1510966]
[1760890903670,0.45490001,3972.3,3972.2,3.1510966]
[1760890906212,0.45490001,3972.3,3972.1,0.6336]
[1760890906400,1e-08,3972.3,3972.2,0.6336]
[1760890906799,1e-08,3972.3,3972.1,3.059]
[1760890907000,0.4687,3972.2,3972.1,3.059]
[1760890907697,0.4687,3972.2,3972.1,5.57655998]
[1760890907898,0.4687,3972.2,3972.1,6.21015998]
[1760890908085,1e-08,3972.3,3972.2,3.1510966]
[1760890908290,1e-08,3972.3,3972.2,3.17627156]
[1760890908598,0.46580001,3972.3,3972.2,3.17627156]
[1760890908803,0.46580001,3972.3,3972.2,3.1510966]
[1760890909177,1e-08,3972.3,3972.2,4.02386814]
[1760890910190,0.46580001,3972.3,3972.2,3.1510966]
[1760890910906,0.46580001,3972.3,3972.2,6.3630966]
[1760890911107,0.46580001,3972.3,3972.2,3.212]
[1760890911307,1e-08,3972.3,3972.2,6.3630966]
[1760890911511,0.46580001,3972.3,3972.2,6.3630966]
[1760890912018,1e-08,3972.3,3972.2,6.3630966]
[1760890913096,0.46580001,3972.3,3972.2,6.3630966]
[1760890913724,0.46580001,3972.3,3972.2,3.8456]
[1760890914813,0.46580001,3972.3,3972.2,6.3630966]
[1760890916097,1e-08,3972.3,3972.2,6.3630966]
[1760890917417,1e-08,3972.3,3972.2,7.26372805]
[1760890920113,0.46580001,3972.3,3972.2,6.3600966]
[1760890920282,0.46580001,3972.3,3972.2,3.1510966]
[1760890920490,0.46580001,3972.3,3972.2,6.3590966]
[1760890921108,0.46580001,3972.3,3972.2,0.6336]
[1760890921313,0.46580001,3972.3,3972.2,6.3590966]
[1760890921514,1e-08,3972.3,3972.2,6.3590966]
[1760890923325,1e-08,3972.3,3972.2,3.1510966]
[1760890923530,1e-08,3972.3,3972.2,6.3590966]
[1760890924228,1e-08,3972.3,3972.2,7.25932756]
[1760890926332,1e-08,3972.3,3972.2,7.83992756]
[1760890930101,1e-08,3972.3,3972.2,9.56792756]
[1760890931302,1e-08,3972.3,3972.2,9.6687809]
[1760890933417,1e-08,3972.3,3972.2,13.4887809]
[1760890933729,1e-08,3972.3,3972.2,14.42061238]
[1760890933931,1e-08,3972.3,3972.2,11.21261238]
[1760890934104,1e-08,3972.3,3972.2,16.11861238]
[1760890938144,1e-08,3972.3,3972.2,11.21261238]
[1760890938440,1e-08,3972.3,3972.2,16.11661238]
[1760890940526,1e-08,3972.3,3972.2,11.21261238]
[1760890940744,1e-08,3972.3,3972.2,16.11561238]
[1760890940943,1e-08,3972.3,3972.2,3.6441809]
[1760890941149,0.42530001,3972.3,3972.2,5.7194966]
[1760890941845,0.42530001,3972.3,3972.2,2.5174966]
[1760890942048,0.42530001,3972.3,3972.1,0.002]
[1760890942353,0.4253,3972.2,3972.1,0.002]
[1760890942525,0.4253,3972.2,3972.1,3.204]
[1760890942727,0.4253,3972.2,3972.1,3.8376]
[1760890942967,1e-08,3972.3,3972.2,3.1510966]
[1760890944578,1e-08,3972.3,3972.2,3.5818966]
[1760890945165,1e-08,3972.3,3972.2,6.7848966]
[1760890945866,1e-08,3972.3,3972.2,3.1510966]
[1760890946068,1e-08,3972.3,3972.2,4.293216]
[1760890946270,1e-08,3972.3,3972.2,7.495216]
[1760890948043,1e-08,3972.3,3972.2,7.926016]
[1760890948980,1e-08,3972.3,3972.2,8.178116]
[1760890949643,1e-08,3972.3,3972.2,9.906116]
[1760890950776,1e-08,3972.3,3972.2,6.273316]
[1760890950965,1e-08,3972.3,3972.2,9.599916]
[1760890951365,1e-08,3972.3,3972.2,6.398916]
[1760890951571,1e-08,3972.3,3972.2,9.347816]
[1760890952885,1e-08,3972.3,3972.2,9.768916]
[1760890955386,1e-08,3972.3,3972.2,10.198616]
[1760890956252,1e-08,3972.3,3972.2,14.52074748]
[1760890957371,1e-08,3972.3,3972.2,14.95044748]
[1760890959070,1e-08,3972.3,3972.2,15.20254748]
[1760890959994,1e-08,3972.3,3972.2,17.85654748]
[1760890962688,1e-08,3972.3,3972.2,17.06119397]
[1760890963079,1e-08,3972.3,3972.2,20.88119397]
[1760890964701,1e-08,3972.3,3972.2,16.99839397]
[1760890965000,1e-08,3972.3,3972.2,21.89439397]
[1760890965378,1e-08,3972.3,3972.2,22.32409397]
[1760890966316,1e-08,3972.3,3972.2,22.57619397]
[1760890969813,1e-08,3972.3,3972.2,22.32409397]
[1760890970018,1e-08,3972.3,3972.2,21.89439397]
[1760890970719,1e-08,3972.3,3972.2,22.32409397]
[1760890971201,1e-08,3972.3,3972.2,22.58249397]
[1760890976617,0.001,3972.7,3972.6,4.87884311]
[1760890976808,0.001,3972.7,3972.6,13.2061381]
[1760890977030,0.001,3972.7,3972.6,13.3317381]
[1760890977325,0.001,3972.7,3972.6,13.7320381]
[1760890977705,0.001,3972.7,3972.6,17.5520381]
[1760890978323,0.001,3972.7,3972.6,25.86251607]
[1760890979433,0.001,3972.7,3972.6,26.11461607]
[1760890980013,1e-08,3973.3,3973.2,2.51686298]
[1760890980213,1e-08,3973.3,3973.2,14.37162725]
[1760890980626,1e-08,3973.3,3973.2,14.60222725]
[1760890980861,0.2306,3973.9,3973.8,3.15008296]
[1760890981044,0.2306,3973.9,3973.8,6.34308296]
[1760890982047,0.2346,3973.9,3973.8,6.34308296]
[1760890982249,0.2346,3973.9,3973.8,7.25210807]
[1760890983575,0.2346,3973.9,3973.8,6.34308296]
[1760890983783,0.2346,3973.9,3973.8,3.15008296]
[1760890984067,0.2346,3973.9,3973.8,6.34208296]
[1760890984955,0.2346,3973.9,3973.8,6.34108296]
[1760890988166,0.2346,3973.9,3973.8,10.29756093]
[1760890990041,0.2346,3973.9,3973.8,10.42316093]
[1760890991273,0.2346,3973.9,3973.8,11.24332486]
[1760890992169,0.1256,3974.7,3974.1,2.51629299]
[1760890992369,0.1256,3974.7,3974.0,0.6336]
[1760890992370,0.1838,3975.1,3975.0,3.14932327]